fUSD/lending_fUSD_20260226
["ID","MTS","AMOUNT","RATE_DAILY","PERIOD"]
[406719601,1772118643151,-500.0,0.000103,2]
[406719602,1772118643163,-700.0,0.000103,2]
[406719603,1772118643172,-500.0,0.000103,2]
[406719604,1772118643182,-500.0,0.000103,2]
[406719605,1772118643198,-500.0,0.000103,2]
[406719606,1772118643207,-500.0,0.000103,2]
[406719607,1772118643217,-500.0,0.000103,2]
[406719608,1772118643226,-500.0,0.000103,2]
[406719609,1772118643238,-500.0,0.000103,2]
[406719610,1772118643247,-500.0,0.000103,2]
[406719611,1772118643256,-500.0,0.000103,2]
[406719612,1772118643266,-500.0,0.000103,2]
[406719613,1772118643276,-500.0,0.000103,2]
[406719614,1772118643286,-500.0,0.000103,2]
[406719615,1772118643295,-500.0,0.000103,2]
[406719616,1772118643305,-500.0,0.000103,2]
[406719617,1772118643314,-500.0,0.000103,2]
[406719618,1772118643323,-500.0,0.000103,2]
[406719619,1772118643333,-500.0,0.000103,2]
[406719620,1772118643342,-500.0,0.000103,2]
[406719621,1772118643352,-500.0,0.000103,2]
[406719622,1772118643361,-500.0,0.000103,2]
[406719623,1772118643370,-500.0,0.000103,2]
[406719624,1772118643380,-500.0,0.000103,2]
[406719625,1772118643389,-500.0,0.000103,2]
[406719626,1772118643399,-500.0,0.000103,2]
[406719627,1772118643409,-700.0,0.000103,2]
[406719628,1772118643419,-500.0,0.000103,2]
[406719629,1772118643428,-500.0,0.000103,2]
[406719630,1772118643437,-500.0,0.000103,2]
[406719631,1772118643447,-4953.0,0.0001043,2]
[406719632,1772118643457,-500.0,0.00010829,2]
[406719633,1772118643466,-1703.73609908,0.000109,2]
[406719634,1772118643476,-1703.73609901,0.000109,2]
[406719635,1772118643485,-16240.68395685,0.00011099,2]
[406719636,1772118643495,-16240.68395677,0.00011099,2]
[406719637,1772118643504,-5771.18,0.00011233,2]
[406719638,1772118643513,-1000.0,0.00011301,2]
[406719639,1772118643523,-1000.0,0.00011377,2]
[406719640,1772118643532,-16240.68395677,0.00011488,2]
[406719641,1772118643542,-160.0,0.00011524,2]
[406719642,1772118643553,-173.95657067,0.00011524,2]
[406719643,1772118643562,-1500.0,0.00011924,2]
[406719644,1772118643572,-1703.73609901,0.00012011,2]
[406719645,1772118643582,-1000.0,0.00012329,2]
[406719646,1772118643591,-16240.68395677,0.00012404,2]
[406719647,1772118643601,-618.0,0.0001243,2]
[406719648,1772118643611,-1041.0,0.0001243,2]
[406719649,1772118643621,-1340.0,0.0001243,2]
[406719650,1772118643631,-1277.0,0.0001243,2]
[406719651,1772118643641,-920.0,0.0001243,2]
[406719653,1772118643650,-1211.0,0.0001243,2]
[406719654,1772118643661,-5983.0,0.0001243,2]
[406719655,1772118643670,-413.0,0.0001243,2]
[406719656,1772118643680,-4572.0,0.0001243,2]
[406719658,1772118643690,-2000.0,0.00012472,2]
[406719659,1772118643700,-150.0,0.00012757,2]
[406719660,1772118643710,-150.0,0.00012757,2]
[406719661,1772118643720,-150.0,0.00012757,2]
[406719662,1772118643730,-150.0,0.00012757,2]
[406719663,1772118643739,-150.0,0.00012757,2]
[406719664,1772118643748,-615.83999229,0.0001289,2]
[406719665,1772118643759,-500.0,0.0001289,2]
[406719666,1772118643769,-500.0,0.0001289,2]
[406719667,1772118643778,-504.90043007,0.0001289,2]
[406719668,1772118643787,-626.24566997,0.0001289,2]
[406719669,1772118643798,-500.0,0.0001289,2]
[406719670,1772118643807,-500.0,0.0001289,2]
[406719671,1772118643817,-173.7910009,0.0001289,2]
[406719672,1772118643827,-226.12454466,0.0001289,2]
[406719673,1772118643836,-500.0,0.0001289,2]
[406719674,1772118643846,-500.0,0.0001289,2]
[406719675,1772118643856,-500.76827377,0.0001289,2]
[406719676,1772118643867,-500.0,0.0001289,2]
[406719677,1772118643877,-500.0,0.0001289,2]
[406719678,1772118643886,-500.0,0.0001289,2]
[406719679,1772118643896,-500.0,0.0001289,2]
[406719680,1772118643907,-500.0,0.0001289,2]
[406719681,1772118643916,-500.0,0.0001289,2]
[406719682,1772118643925,-500.0,0.0001289,2]
[406719683,1772118643938,-500.0,0.0001289,2]
[406719684,1772118643947,-500.0,0.0001289,2]
[406719685,1772118643956,-500.0,0.0001289,2]
[406719686,1772118643966,-500.0,0.0001289,2]
[406719687,1772118643975,-500.0,0.0001289,2]
[406719688,1772118643984,-500.0,0.0001289,2]
[406719689,1772118643994,-500.0,0.0001289,2]
[406719690,1772118644006,-500.0,0.0001289,2]
[406719691,1772118644016,-500.0,0.0001289,2]
[406719692,1772118644027,-500.0,0.0001289,2]
[406719693,1772118644036,-500.0,0.0001289,2]
[406719694,1772118644047,-500.0,0.0001289,2]
[406719695,1772118644057,-500.0,0.0001289,2]
[406719696,1772118644067,-500.0,0.0001289,2]
[406719697,1772118644076,-500.0,0.0001289,2]
[406719698,1772118644086,-500.0,0.0001289,2]
[406719699,1772118644096,-500.0,0.0001289,2]
[406719700,1772118644106,-500.0,0.0001289,2]
[406719701,1772118644116,-500.0,0.0001289,2]
[406719702,1772118644126,-500.0,0.0001289,2]
[406719703,1772118644135,-500.0,0.0001289,2]
[406719704,1772118644144,-500.0,0.0001289,2]
[406719705,1772118644157,-500.0,0.0001289,2]
[406719706,1772118644167,-150.25022043,0.0001289,2]
[406719707,1772118644176,-500.0,0.0001289,2]
[406719708,1772118644185,-502.38608045,0.0001289,2]
[406719709,1772118644196,-500.0,0.0001289,2]
[406719710,1772118644208,-500.0,0.0001289,2]
[406719711,1772118644218,-500.0,0.0001289,2]
[406719712,1772118644227,-500.0,0.0001289,2]
[406719713,1772118644237,-500.0,0.0001289,2]
[406719714,1772118644246,-500.0,0.0001289,2]
[406719715,1772118644258,-500.0,0.0001289,2]
[406719716,1772118644267,-500.0,0.0001289,2]
[406719717,1772118644277,-500.0,0.0001289,2]
[406719718,1772118644286,-500.0,0.0001289,2]
[406719719,1772118644296,-500.0,0.0001289,2]
[406719720,1772118644305,-500.0,0.0001289,2]
[406719721,1772118644315,-500.0,0.0001289,2]
[406719722,1772118644324,-500.0,0.0001289,2]
[406719723,1772118644334,-500.0,0.0001289,2]
[406719724,1772118644343,-500.0,0.0001289,2]
[406719725,1772118644352,-670.0,0.0001289,2]
[406719726,1772118644361,-500.0,0.0001289,2]
[406719727,1772118644371,-500.0,0.0001289,2]
[406719728,1772118644380,-500.0,0.0001289,2]
[406719729,1772118644389,-500.0,0.0001289,2]
[406719730,1772118644399,-500.0,0.0001289,2]
[406719731,1772118644410,-500.0,0.0001289,2]
[406719732,1772118644419,-500.0,0.0001289,2]
[406719733,1772118644428,-500.0,0.0001289,2]
[406719734,1772118644437,-500.0,0.0001289,2]
[406719735,1772118644447,-500.0,0.0001289,2]
[406719736,1772118644457,-500.0,0.0001289,2]
[406719737,1772118644467,-500.0,0.0001289,2]
[406719738,1772118644580,-152.0758102,0.0001289,2]
[406719739,1772118644590,-500.0,0.0001289,2]
[406719740,1772118644599,-500.0,0.0001289,2]
[406719741,1772118644609,-5628.56477834,0.00013,2]
[406719742,1772118644618,-2500.0,0.0001302,2]
[406719743,1772118644627,-1703.73609901,0.00013189,2]
[406719744,1772118644636,-16240.68395677,0.0001332,2]
[406719745,1772118644646,-3000.0,0.00013568,2]
[406719746,1772118644657,-693.3919763,0.00013576,2]
[406719747,1772118644666,-151.0,0.00013576,2]
[406719748,1772118644675,-373.19905658,0.00013576,2]
[406719749,1772118644688,-500.0,0.00013576,2]
[406719750,1772118644698,-500.0,0.00013576,2]
[406719751,1772118644707,-500.0,0.00013576,2]
[406719752,1772118644716,-500.0,0.00013576,2]
[406719753,1772118644725,-500.0,0.00013576,2]
[406719754,1772118644734,-500.0,0.00013576,2]
[406719755,1772118644743,-500.0,0.00013576,2]
[406719756,1772118644752,-500.0,0.00013576,2]
[406719757,1772118644762,-500.0,0.00013576,2]
[406719758,1772118644771,-500.0,0.00013576,2]
[406719759,1772118644780,-500.0,0.00013576,2]
[406719760,1772118644790,-2698.85736045,0.0001358,2]
[406719761,1772118644798,-719.04747942,0.00013631,2]
[406719762,1772118644807,-374.970065,0.00013685,2]
[406719763,1772118644817,-2653.374152,0.00013685,2]
[406719764,1772118644826,-745.65223616,0.00013686,2]
[406719765,1772118644835,-500.0,0.00013698,2]
[406719766,1772118644845,-500.0,0.00013698,2]
[406719767,1772118644854,-500.0,0.00013698,2]
[406719768,1772118644863,-500.0,0.00013698,2]
[406719769,1772118644872,-500.0,0.00013698,2]
[406719770,1772118644881,-500.0,0.00013698,2]
[406719771,1772118644890,-500.0,0.00013698,2]
[406719772,1772118644900,-500.0,0.00013698,2]
[406719773,1772118644911,-500.0,0.00013698,2]
[406719774,1772118644920,-500.0,0.00013698,2]
[406719775,1772118644930,-500.0,0.00013698,2]
[406719776,1772118644939,-500.0,0.00013698,2]
[406719777,1772118644948,-500.0,0.00013698,2]
[406719778,1772118644957,-500.0,0.00013698,2]
[406719779,1772118644966,-368.2260392,0.00013698,2]
[406719780,1772118644975,-500.0,0.00013698,2]
[406719781,1772118644985,-500.0,0.00013698,2]
[406719782,1772118644994,-500.0,0.00013698,2]
[406719783,1772118645003,-500.0,0.00013698,2]
[406719784,1772118645012,-409.20397161,0.00013698,2]
[406719785,1772118645022,-500.0,0.00013698,2]
[406719786,1772118645031,-500.0,0.00013698,2]
[406719787,1772118645041,-500.0,0.00013698,2]
[406719788,1772118645050,-500.0,0.00013698,2]
[406719789,1772118645060,-500.0,0.00013698,2]
[406719790,1772118645069,-500.0,0.00013698,2]
[406719791,1772118645079,-500.0,0.00013698,2]
[406719792,1772118645088,-500.0,0.00013698,2]
[406719793,1772118645097,-500.0,0.00013698,2]
[406719794,1772118645106,-500.0,0.00013698,2]
[406719795,1772118645115,-500.0,0.00013698,2]
[406719796,1772118645124,-500.0,0.00013698,2]
[406719797,1772118645134,-500.0,0.00013698,2]
[406719798,1772118645143,-500.0,0.00013698,2]
[406719799,1772118645152,-500.0,0.00013698,2]
[406719800,1772118645162,-500.0,0.00013698,2]
[406719801,1772118645171,-500.0,0.00013698,2]
[406719802,1772118645180,-500.0,0.00013698,2]
[406719803,1772118645193,-500.0,0.00013698,2]
[406719804,1772118645203,-500.0,0.00013698,2]
[406719805,1772118645212,-500.0,0.00013698,2]
[406719806,1772118645221,-500.0,0.00013698,2]
[406719807,1772118645231,-500.0,0.00013698,2]
[406719808,1772118645240,-584.92775525,0.00013698,2]
[406719809,1772118645250,-151.77928561,0.00013698,2]
[406719810,1772118645259,-500.0,0.00013698,2]
[406719811,1772118645268,-500.0,0.00013698,2]
[406719812,1772118645277,-500.0,0.00013698,2]
[406719813,1772118645286,-269.57915282,0.00013698,2]
[406719814,1772118645296,-500.0,0.00013698,2]
[406719815,1772118645305,-500.0,0.00013698,2]
[406719816,1772118645314,-467.36158262,0.00013698,2]
[406719817,1772118645323,-318.18597163,0.00013698,2]
[406719818,1772118645334,-500.0,0.00013698,2]
[406719819,1772118645343,-500.0,0.00013698,2]
[406719820,1772118645353,-568.60354988,0.00013698,2]
[406719821,1772118645363,-500.0,0.00013698,2]
[406719822,1772118645372,-500.0,0.00013698,2]
[406719823,1772118645382,-500.0,0.00013698,2]
[406719824,1772118645392,-405.62075362,0.00013698,2]
[406719825,1772118645401,-271.25,0.00013699,2]
[406719826,1772118645412,-226.04,0.00013699,2]
[406719827,1772118645422,-188.37,0.00013699,2]
[406719828,1772118645431,-156.97,0.00013699,2]
[406719829,1772118645440,-784.9,0.00013699,2]
[406719830,1772118645452,-666.0,0.00013699,2]
[406719831,1772118645461,-18623.58,0.000137,2]
[406719832,1772118645471,-18623.58,0.000137,2]
[406719833,1772118645480,-773.2413689,0.00013741,2]
[406719834,1772118645489,-204.31050693,0.00013778,2]
[406719835,1772118645499,-21846.65485425,0.00013778,2]
[406719836,1772118645508,-801.85129955,0.00013796,2]
[406719837,1772118645518,-831.51979763,0.00013851,2]
[406719838,1772118645528,-862.28603014,0.00013906,2]
[406719839,1772118645537,-894.19061326,0.00013961,2]
[406719840,1772118645547,-152.0,0.00013964,3]
[406719841,1772118645556,-927.27566595,0.00014016,2]
[406719842,1772118645566,-961.58486559,0.00014071,2]
[406719843,1772118645575,-1466.1264312,0.00014116,2]
[406719844,1772118645585,-151.0,0.00014124,2]
[406719845,1772118645595,-2288.77901783,0.0001421,7]
[406719846,1772118645606,-224.40086961,0.00014224,2]
[406719847,1772118645616,-16240.68395677,0.00014236,2]
[406719848,1772118645625,-1703.73609901,0.00014367,2]
[406719849,1772118645635,-710.3,0.000145,2]
[406719850,1772118645644,-151.0,0.00014634,2]
[406719851,1772118645655,-202.67,0.00014842,14]
[406719852,1772118645666,-202.68,0.00014842,14]
[406719853,1772118645676,-502.0,0.0001489,2]
[406719854,1772118645685,-152.0,0.0001491,4]
[406719855,1772118645695,-250.0,0.00015,2]
[406719856,1772118645705,-10039.86886893,0.0001512,2]
[406719857,1772118645715,-4687.60010129,0.00015152,2]
[406719858,1772118645728,-16240.68395677,0.00015152,2]
[406719859,1772118645738,-163.58,0.00015307,2]
[406719860,1772118645748,-202.67,0.0001539,14]
[406719861,1772118645758,-202.68,0.0001539,14]
[406719862,1772118645768,-618.0,0.0001543,2]
[406719863,1772118645778,-1041.0,0.0001543,2]
[406719864,1772118645788,-1277.0,0.0001543,2]
[406719865,1772118645798,-920.0,0.0001543,2]
[406719866,1772118645808,-1211.0,0.0001543,2]
[406719867,1772118645817,-5983.0,0.0001543,2]
[406719868,1772118645827,-413.0,0.0001543,2]
[406719869,1772118645836,-431.215575,0.00015431,7]
[406719870,1772118645845,-1703.73609901,0.00015545,2]
[406719871,1772118645855,-152.0,0.00015856,5]
[406719872,1772118645864,-202.67,0.00015938,14]
[406719873,1772118645874,-202.68,0.00015938,14]
[406719874,1772118645883,-500.0,0.00015983,2]
[406719876,1772118645893,-500.0,0.00015983,2]
[406719878,1772118645902,-4687.60010129,0.00016068,2]
[406719879,1772118645918,-16240.68395677,0.00016068,2]
[406719880,1772118645928,-5000.009598,0.000162,5]
[406719881,1772118645938,-500.0,0.00016356,2]
[406719882,1772118645947,-500.0,0.00016356,2]
[406719883,1772118645956,-700.0,0.00016356,2]
[406719884,1772118645966,-606.4,0.00016438,2]
[406719885,1772118645976,-500.0,0.00016438,2]
[406719886,1772118645985,-502.0,0.0001644,3]
[406719887,1772118645994,-500.0,0.00016493,2]
[406719888,1772118646003,-500.0,0.00016548,2]
[406719889,1772118646012,-500.0,0.00016602,2]
[406719890,1772118646021,-163.58,0.00016654,2]
[406719891,1772118646031,-500.0,0.00016657,2]
[406719892,1772118646040,-500.0,0.00016712,2]
[406719893,1772118646050,-606.4,0.00016712,2]
[406719894,1772118646059,-1703.73609901,0.00016722,2]
[406719895,1772118646069,-500.0,0.00016767,2]
[406719896,1772118646078,-200.0,0.00016792,2]
[406719897,1772118646088,-152.0,0.00016802,6]
[406719898,1772118646097,-379.89029775,0.00016822,2]
[406719899,1772118646106,-4100.0,0.000169,6]
[406719900,1772118646116,-2641.30302155,0.000169,2]
[406719901,1772118646125,-294.49398959,0.000169,2]
[406719902,1772118646135,-465.42516497,0.000169,2]
[406719903,1772118646144,-500.0,0.00016932,2]
[406719904,1772118646153,-500.0,0.00016932,2]
[406719905,1772118646165,-500.0,0.00016932,3]
[406719906,1772118646174,-500.0,0.00016932,4]
[406719907,1772118646184,-500.0,0.00016932,2]
[406719908,1772118646193,-4687.60010129,0.00016984,2]
[406719909,1772118646207,-16240.68395677,0.00016984,2]
[406719910,1772118646217,-606.4,0.00016986,2]
[406719911,1772118646226,-151.0,0.00016997,2]
[406719912,1772118646337,-662.41100623,0.00016999,2]
[406719913,1772118646347,-300.0,0.00016999,2]
[406719914,1772118646356,-300.0,0.00016999,2]
[406719915,1772118646365,-300.0,0.00016999,2]
[406719916,1772118646375,-300.0,0.00017,2]
[406719917,1772118646384,-500.0,0.00017,7]
[406719918,1772118646393,-417.39,0.00017,7]
[406719919,1772118646403,-374957.17595576,0.00017,2]
[406719920,1772118646417,-173.95657067,0.00017,7]
[406719921,1772118646427,-200.0,0.00017033,2]
[406719922,1772118646436,-200.0,0.00017033,2]
[406719923,1772118646446,-200.0,0.00017033,2]
[406719924,1772118646455,-200.0,0.00017033,2]
[406719925,1772118646465,-200.0,0.00017033,2]
[406719926,1772118646475,-200.0,0.00017033,2]
[406719927,1772118646484,-200.0,0.00017033,2]
[406719928,1772118646494,-200.0,0.00017033,2]
[406719929,1772118646504,-200.0,0.00017033,2]
[406719930,1772118646514,-200.0,0.00017033,2]
[406719931,1772118646524,-200.0,0.00017033,2]
[406719932,1772118646533,-200.0,0.00017033,2]
[406719933,1772118646543,-200.0,0.00017033,2]
[406719934,1772118646553,-200.0,0.00017033,2]
[406719935,1772118646562,-200.0,0.00017033,2]
[406719936,1772118646572,-200.0,0.00017033,2]
[406719937,1772118646581,-200.0,0.00017033,2]
[406719938,1772118646591,-200.0,0.00017033,2]
[406719939,1772118646601,-200.0,0.00017033,2]
[406719940,1772118646610,-200.0,0.00017033,2]
[406719941,1772118646620,-200.0,0.00017033,2]
[406719942,1772118646629,-200.0,0.00017033,2]
[406719943,1772118646639,-200.0,0.00017033,2]
[406719944,1772118646649,-200.0,0.00017033,2]
[406719945,1772118646662,-200.0,0.00017033,2]
[406719946,1772118646671,-200.0,0.00017033,2]
[406719947,1772118646680,-200.0,0.00017033,2]
[406719948,1772118646689,-200.0,0.00017033,2]
[406719949,1772118646699,-200.0,0.00017033,2]
[406719950,1772118646708,-200.0,0.00017033,2]
[406719951,1772118646717,-200.0,0.00017033,2]
[406719952,1772118646727,-200.0,0.00017033,2]
[406719953,1772118646736,-200.0,0.00017033,2]
[406719954,1772118646746,-200.0,0.00017033,2]
[406719955,1772118646755,-200.0,0.00017033,2]
[406719956,1772118646764,-200.0,0.00017033,2]
[406719957,1772118646773,-240.0,0.00017033,2]
[406719958,1772118646783,-800.0,0.00017033,2]
[406719959,1772118646792,-800.0,0.00017033,2]
[406719960,1772118646801,-800.0,0.00017033,2]
[406719961,1772118646811,-800.0,0.00017033,2]
[406719962,1772118646821,-800.0,0.00017033,2]
[406719963,1772118646830,-800.0,0.00017033,2]
[406719964,1772118646839,-800.0,0.00017033,2]
[406719965,1772118646849,-800.0,0.00017033,2]
[406719966,1772118646858,-800.0,0.00017033,2]
[406719967,1772118646867,-800.0,0.00017033,2]
[406719968,1772118646876,-800.0,0.00017033,2]
[406719969,1772118646886,-800.0,0.00017033,2]
[406719970,1772118646895,-800.0,0.00017033,2]
[406719971,1772118646904,-800.0,0.00017033,2]
[406719972,1772118646915,-800.0,0.00017033,2]
[406719973,1772118646924,-800.0,0.00017033,2]
[406719974,1772118646934,-800.0,0.00017033,2]
[406719975,1772118646944,-800.0,0.00017033,2]
[406719976,1772118646953,-800.0,0.00017033,2]
[406719977,1772118646963,-800.0,0.00017033,2]
[406719978,1772118646972,-800.0,0.00017033,2]
[406719979,1772118646981,-800.0,0.00017033,2]
[406719980,1772118646991,-800.0,0.00017033,2]
[406719981,1772118647000,-800.0,0.00017033,2]
[406719982,1772118647010,-800.0,0.00017033,2]
[406719983,1772118647020,-800.0,0.00017033,2]
[406719984,1772118647029,-800.0,0.00017033,2]
[406719985,1772118647040,-800.0,0.00017033,2]
[406719986,1772118647049,-800.0,0.00017033,2]
[406719987,1772118647059,-800.0,0.00017033,2]
[406719988,1772118647068,-800.0,0.00017033,2]
[406719989,1772118647078,-800.0,0.00017033,2]
[406719990,1772118647087,-800.0,0.00017033,2]
[406719991,1772118647096,-800.0,0.00017033,2]
[406719992,1772118647106,-800.0,0.00017033,2]
[406719993,1772118647115,-800.0,0.00017033,2]
[406719994,1772118647125,-800.0,0.00017033,2]
[406719995,1772118647134,-800.0,0.00017033,2]
[406719996,1772118647143,-800.0,0.00017033,2]
[406719997,1772118647153,-800.0,0.00017033,2]
[406719998,1772118647165,-800.0,0.00017033,2]
[406719999,1772118647174,-800.0,0.00017033,2]
[406720000,1772118647183,-433.0,0.00017033,2]
[406720001,1772118647198,-2844.0,0.0001704,2]
[406720002,1772118647207,-18386.068904,0.000171,2]
[406720003,1772118647217,-5436.70489032,0.000171,2]
[406720004,1772118647226,-1306.0,0.00017169,2]
[406720005,1772118647237,-1911.0,0.00017169,2]
[406720006,1772118647246,-606.4,0.0001726,2]
[406720007,1772118647255,-1000.0,0.0001726,2]
[406720008,1772118647266,-1774.71622433,0.00017273,2]
[406720009,1772118647276,-5200.0,0.000173,6]
[406720010,1772118647285,-202.67,0.00017308,14]
[406720011,1772118647294,-202.67,0.00017308,14]
[406720012,1772118647303,-529.0,0.00017331,2]
[406720013,1772118647313,-965.74,0.00017333,2]
[406720014,1772118647323,-150.0,0.00017333,2]
[406720015,1772118647332,-190.0,0.0001736,2]
[406720016,1772118647341,-1212.0,0.0001736,2]
[406720017,1772118647350,-2641.30302154,0.000174,2]
[406720018,1772118647359,-294.49398957,0.000174,2]
[406720019,1772118647369,-465.42516495,0.000174,2]
[406720020,1772118647378,-1000.0,0.000174,6]
[406720021,1772118647387,-2331.03,0.00017471,2]
[406720022,1772118647396,-350.0,0.00017499,2]
[406720023,1772118647407,-1000.0,0.000175,6]
[406720024,1772118647416,-606.4,0.00017534,2]
[406720025,1772118647425,-1000.0,0.00017534,2]
[406720026,1772118647435,-529.0,0.00017589,2]
[406720027,1772118647445,-529.0,0.00017592,2]
[406720028,1772118647455,-1000.0,0.000176,6]
[406720029,1772118647464,-529.0,0.00017619,2]
[406720030,1772118647473,-731.0,0.00017635,2]
[406720031,1772118647483,-150.0,0.00017635,2]
[406720032,1772118647492,-281.0,0.00017635,2]
[406720033,1772118647502,-1833.85447521,0.0001764,2]
[406720034,1772118647511,-529.0,0.0001766,2]
[406720035,1772118647521,-350.0,0.00017665,5]
[406720036,1772118647530,-845.0,0.0001768,2]
[406720037,1772118647539,-160.0,0.0001768,2]
[406720038,1772118647549,-785.31942984,0.000177,2]
[406720039,1772118647558,-1000.0,0.000177,6]
[406720040,1772118647567,-350.0,0.00017718,5]
[406720041,1772118647577,-500.0,0.00017726,7]
[406720042,1772118647586,-500.0,0.00017726,7]
[406720043,1772118647595,-700.0,0.00017726,7]
[406720044,1772118647604,-693.94657191,0.0001773,2]
[406720045,1772118647614,-152.0,0.00017749,7]
[406720046,1772118647623,-1034.1174351,0.00017758,2]
[406720047,1772118647632,-529.0,0.00017762,2]
[406720048,1772118647641,-150.0,0.00017766,2]
[406720049,1772118647650,-529.0,0.00017777,2]
[406720050,1772118647661,-1488.0,0.000178,6]
[406720051,1772118647671,-606.4,0.00017808,2]
[406720052,1772118647680,-589.4162236,0.00017808,2]
[406720053,1772118647689,-589.4162236,0.00017808,2]
[406720054,1772118647698,-589.4162236,0.00017808,2]
[406720055,1772118647707,-589.4162236,0.00017808,2]
[406720056,1772118647717,-589.4162236,0.00017808,2]
[406720057,1772118647726,-589.4162236,0.00017808,2]
[406720058,1772118647735,-589.4162236,0.00017808,2]
[406720059,1772118647744,-589.4162236,0.00017808,2]
[406720060,1772118647754,-589.4162236,0.00017808,2]
[406720061,1772118647763,-589.4162236,0.00017808,2]
[406720062,1772118647772,-589.4162236,0.00017808,2]
[406720063,1772118647781,-589.4162236,0.00017808,2]
[406720064,1772118647791,-589.4162236,0.00017808,2]
[406720065,1772118647801,-589.4162236,0.00017808,2]
[406720066,1772118647810,-633.62244038,0.00017808,2]
[406720067,1772118647819,-633.62244038,0.00017808,2]
[406720068,1772118647828,-633.62244038,0.00017808,2]
[406720069,1772118647838,-633.62244038,0.00017808,2]
[406720070,1772118647847,-633.62244038,0.00017808,2]
[406720071,1772118647956,-633.62244038,0.00017808,2]
[406720072,1772118647966,-633.62244038,0.00017808,2]
[406720073,1772118647975,-633.62244038,0.00017808,2]
[406720074,1772118647985,-633.62244038,0.00017808,2]
[406720075,1772118647994,-1085.33392204,0.00017808,2]
[406720076,1772118648003,-500.0,0.00017808,2]
[406720077,1772118648013,-1000.0,0.00017808,2]
[406720078,1772118648022,-800.0,0.00017808,2]
[406720079,1772118648032,-1176.11206,0.0001782,2]
[406720080,1772118648041,-1176.11207,0.0001782,2]
[406720081,1772118648051,-158.27050591,0.0001782,2]
[406720082,1772118648060,-271.0,0.00017824,2]
[406720083,1772118648069,-500.0,0.00017829,2]
[406720084,1772118648079,-500.0,0.00017829,2]
[406720085,1772118648089,-500.0,0.00017829,5]
[406720086,1772118648098,-500.0,0.00017829,2]
[406720087,1772118648108,-137550.62068451,0.0001783,2]
[406720088,1772118648117,-661.0,0.00017833,2]
[406720089,1772118648126,-150.0,0.00017833,2]
[406720090,1772118648135,-150.0,0.00017833,2]
[406720091,1772118648145,-150.0,0.00017833,2]
[406720092,1772118648155,-150.0,0.00017833,2]
[406720093,1772118648168,-179.0,0.00017833,2]
[406720094,1772118648178,-239.0611416,0.00017844,2]
[406720095,1772118648188,-500.0,0.00017863,2]
[406720096,1772118648199,-350.0,0.00017865,2]
[406720097,1772118648210,-741.0,0.00017868,2]
[406720098,1772118648219,-150.0,0.00017868,2]
[406720099,1772118648229,-291.0,0.00017868,2]
[406720100,1772118648239,-1000.0,0.00017872,2]
[406720101,1772118648248,-11849.06322904,0.0001789,2]
[406720102,1772118648258,-1226.81574695,0.0001789,2]
[406720103,1772118648269,-6966.9680085,0.000179,2]
[406720104,1772118648278,-25000.0,0.000179,3]